fUST/lending_fUST_20250406
["ID","MTS","AMOUNT","RATE_DAILY","PERIOD"]
[357241049,1743929731058,500.0,0.00045714,120]
[357241050,1743929731125,500.0,0.00045714,120]
[357241051,1743929731168,500.0,0.00045714,120]
[357241052,1743929731214,500.0,0.00045714,120]
[357241053,1743929731256,500.0,0.00045714,120]
[357241054,1743929731316,500.0,0.00045714,120]
[357241055,1743929731362,500.0,0.00045714,120]
[357241056,1743929731729,500.0,0.00045714,120]
[357241057,1743929731766,500.0,0.00045714,120]
[357241058,1743929731801,505.23940601,0.00045714,120]
[357241059,1743929731836,500.0,0.00045714,120]
[357241060,1743929731872,500.0,0.00045714,120]
[357241061,1743929731907,519.97817168,0.00045714,120]
[357241062,1743929732005,200.0,0.00045714,30]
[357241063,1743929732041,207.4,0.00045714,30]
[357241064,1743929732075,215.0738,0.00045714,30]
[357241065,1743929732110,223.0315306,0.00045714,30]
[357241066,1743929732238,231.28369723,0.00045714,30]
[357241067,1743929732275,239.84119403,0.00045714,30]
[357241068,1743929732344,248.71531821,0.00045714,30]
[357241069,1743929732382,511.41891694,0.00045714,120]
[357241070,1743929732424,257.91778498,0.00045714,30]
[357241071,1743929732464,267.46074303,0.00045714,30]
[357241072,1743929732505,277.35679052,0.00045714,30]
[357241073,1743929732540,287.61899177,0.00045714,30]
[357241074,1743929732577,298.26089446,0.00045714,30]
[357241075,1743929732613,500.0,0.00045714,120]
[357241076,1743929732651,500.0,0.00045714,120]
[357241077,1743929732687,309.29654756,0.00045714,30]
[357241078,1743929732735,193.44450083,0.00045714,120]
[357241079,1743929732771,320.74051982,0.00045714,30]
[357241080,1743929732815,332.60791905,0.00045714,30]
[357241081,1743929732858,344.91441206,0.00045714,30]
[357241082,1743929732901,357.6762453,0.00045714,30]
[357241083,1743929732944,370.91026638,0.00045714,30]
[357241084,1743929732987,384.63394623,0.00045714,30]
[357241085,1743929733331,384.63394623,0.00045714,30]
[357241086,1743929733593,500.0,0.00045714,120]
[357241087,1743929733887,500.0,0.00045714,120]
[357241088,1743929734324,500.0,0.00045714,120]
[357241089,1743929734647,500.0,0.00045714,120]
[357241090,1743929734901,357.45242531,0.00045714,120]
[357241091,1743929736800,500.0,0.00045714,120]
[357241092,1743929737048,500.0,0.00045714,120]
[357241093,1743929741485,500.0,0.00045714,120]
[357241094,1743929741731,500.0,0.00045714,120]
[357241095,1743929743167,500.0,0.00045714,120]
[357241096,1743929743428,500.0,0.00045714,120]
[357241098,1743929745324,500.0,0.00045714,120]
[357241099,1743929745591,500.0,0.00045714,120]
[357241100,1743929750370,350.3755983,0.00045714,120]
[357241101,1743929751907,500.0,0.00045714,120]
[357241102,1743929792356,500.0,0.00045714,120]
[357241104,1743929798965,199.91719163,0.00045714,120]
[357241105,1743929812578,500.0,0.00045714,120]
[357241106,1743929812814,500.0,0.00045714,120]
[357241108,1743929836937,500.0,0.00045714,120]
[357241109,1743929837188,500.0,0.00045714,120]
[357241110,1743929837290,500.0,0.00045714,120]
[357241111,1743929848089,3022.3424587,0.00045714,30]
[357241112,1743929856912,500.0,0.00045714,120]
[357241113,1743929857126,500.0,0.00045714,120]
[357241114,1743929872603,500.0,0.00045714,120]
[357241115,1743929884152,500.0,0.00045714,120]
[357241116,1743929884799,2000.0,0.00045714,120]
[357241117,1743929908699,500.0,0.00045714,120]
[357241118,1743929908923,305.74,0.00045714,120]
[357241119,1743929914583,512.36,0.00045714,120]
[357241120,1743929916503,500.0,0.00045745,120]
[357241121,1743929916717,307.9,0.00045745,120]
[357241122,1743929916759,500.0,0.00045745,120]
[357241123,1743929916989,500.0,0.00045745,120]
[357241124,1743929923422,500.0,0.00045745,120]
[357241125,1743929928091,500.0,0.00045745,120]
[357241126,1743929928329,500.0,0.00045745,120]
[357241127,1743929929963,500.0,0.00045745,120]
[357241128,1743929930222,500.0,0.00045745,120]
[357241129,1743929930485,500.0,0.00045745,120]
[357241130,1743929931654,500.0,0.00045745,120]
[357241131,1743929931899,500.0,0.00045745,120]
[357241132,1743929932476,541.1978486,0.00045745,120]
[357241133,1743930004367,151.0,0.00045745,30]
[357241134,1743930005054,151.0,0.00045745,30]
[357241135,1743930005986,-159.5185218,0.00019573,2]
[357241136,1743930006337,151.0,0.00045745,30]
[357241137,1743930019755,200.0,0.00045745,30]
[357241138,1743930020467,207.4,0.00045745,30]
[357241139,1743930021348,215.0738,0.00045745,30]
[357241140,1743930022056,223.0315306,0.00045745,30]
[357241141,1743930022767,231.28369723,0.00045745,30]
[357241142,1743930023375,239.84119403,0.00045745,30]
[357241143,1743930024005,248.71531821,0.00045745,30]
[357241144,1743930024728,257.91778498,0.00045745,30]
[357241145,1743930025435,267.46074303,0.00045745,30]
[357241146,1743930026311,277.35679052,0.00045745,30]
[357241147,1743930026765,287.61899177,0.00045745,30]
[357241148,1743930027398,298.26089446,0.00045745,30]
[357241149,1743930028076,309.29654756,0.00045745,30]
[357241150,1743930028699,320.74051982,0.00045745,30]
[357241151,1743930029433,332.60791905,0.00045745,30]
[357241152,1743930030055,344.91441206,0.00045745,30]
[357241153,1743930031354,357.6762453,0.00045745,30]
[357241154,1743930032152,370.91026638,0.00045745,30]
[357241155,1743930032848,384.63394623,0.00045745,30]
[357241156,1743930033602,384.63394623,0.00045745,30]
[357241157,1743930036946,500.0,0.00045745,120]
[357241158,1743930037229,500.0,0.00045745,120]
[357241159,1743930037600,500.0,0.00045745,120]
[357241161,1743930046924,500.0,0.00045745,120]
[357241162,1743930059808,500.0,0.00045745,120]
[357241163,1743930061744,500.0,0.00045745,120]
[357241164,1743930062133,500.0,0.00045745,120]
[357241165,1743930063066,500.0,0.00045745,120]
[357241166,1743930063311,500.0,0.00045745,120]
[357241167,1743930064386,500.0,0.00045745,120]
[357241168,1743930064632,500.0,0.00045745,120]
[357241169,1743930065158,500.0,0.00045745,120]
[357241170,1743930075119,500.0,0.00045745,120]
[357241171,1743930075365,500.0,0.00045745,120]
[357241172,1743930084051,500.0,0.00045745,120]
[357241173,1743930087865,500.0,0.00045745,120]
[357241174,1743930095288,541.95,0.00045745,120]
[357241175,1743930098037,500.0,0.00045745,120]
[357241176,1743930098296,604.56783221,0.00045745,120]
[357241177,1743930105853,500.0,0.00045745,120]
[357241178,1743930106110,410.54308371,0.00045745,120]
[357241179,1743930110347,500.0,0.00045745,120]
[357241180,1743930110559,500.0,0.00045745,120]
[357241181,1743930110598,164.14785667,0.00045745,120]
[357241200,1743930137970,2000.0,0.00045745,120]
[357241223,1743930158607,2000.0,0.00045745,40]
[357241235,1743930167125,500.0,0.00045745,120]
[357241236,1743930167408,500.0,0.00045745,120]
[357241237,1743930173253,500.0,0.00045745,120]
[357241238,1743930173507,500.0,0.00045745,120]
[357241248,1743930202485,500.0,0.00045745,120]
[357241249,1743930202742,500.0,0.00045745,120]
[357241250,1743930203024,500.0,0.00045745,120]
[357241251,1743930203421,500.0,0.00045745,120]
[357241252,1743930203715,526.07509743,0.00045745,120]
[357241253,1743930221465,500.0,0.00045745,120]
[357241254,1743930221758,500.0,0.00045745,120]
[357241255,1743930225836,500.0,0.00045745,120]
[357241256,1743930226125,500.0,0.00045745,120]
[357241257,1743930233716,1000549.666299,0.00045745,30]
[357241258,1743930251452,500.0,0.00045745,120]
[357241259,1743930298088,500.0,0.00045745,120]
[357241260,1743930298337,500.0,0.00045745,120]
[357241261,1743930298606,500.0,0.00045745,120]
[357241262,1743930300638,172.382407,0.00013699,2]
[357241263,1743930316954,200.0,0.00045745,30]
[357241264,1743930317639,207.4,0.00045745,30]
[357241265,1743930318884,215.0738,0.00045745,30]
[357241266,1743930320157,215.0738,0.00045745,30]
[357241272,1743930494293,10000.0,0.00045745,120]
[357241273,1743930515954,10000.0,0.00045745,120]
[357241326,1743930585585,527.1,0.00045745,120]
[357241350,1743930632380,-172.382407,0.00019178,2]
[357241351,1743930632392,-500.0,0.00019573,2]
[357241352,1743930632403,-305.25982383,0.00019573,2]
[357241353,1743930632414,-159.5185218,0.0002083,2]
[357241354,1743930632424,-1065.063284,0.00021185,2]
[357241355,1743930632435,-228.2523933,0.00021252,2]
[357241356,1743930632446,-221.6213749,0.00021437,2]
[357241357,1743930632456,-1025.9735592,0.00021938,2]
[357241358,1743930632466,-3373.84221832,0.00021972,2]
[357241359,1743930632476,-300.0,0.00022071,2]
[357241360,1743930632486,-500.0,0.00022071,2]
[357241361,1743930632495,-241.82470073,0.00022071,2]
[357241362,1743930632507,-50000.0,0.00022072,2]
[357241363,1743930632517,-152.27,0.00022072,2]
[357241364,1743930632528,-513.06623195,0.00022073,2]
[357241365,1743930632539,-500.0,0.00022073,2]
[357241366,1743930632550,-500.0,0.00022073,2]
[357241367,1743930632560,-500.0,0.00022073,2]
[357241368,1743930632571,-500.0,0.00022073,2]
[357241369,1743930632581,-271.39089633,0.00022073,2]
[357241370,1743930632592,-500.0,0.00022073,2]
[357241371,1743930632603,-500.0,0.00022073,2]
[357241372,1743930632625,-500.0,0.00022073,2]
[357241373,1743930632637,-500.0,0.00022073,2]
[357241374,1743930632647,-500.0,0.00022073,2]
[357241375,1743930632660,-500.0,0.00022073,2]
[357241376,1743930632671,-500.0,0.00022073,2]
[357241377,1743930632682,-500.0,0.00022073,2]
[357241378,1743930632695,-500.0,0.00022074,2]
[357241379,1743930632705,-160.0,0.00022075,2]
[357241380,1743930632714,-419.28457398,0.00022075,2]
[357241381,1743930632724,-12525.30748765,0.00022075,2]
[357241382,1743930632734,-500.0,0.00022573,2]
[357241383,1743930632745,-500.0,0.00022573,2]
[357241384,1743930632756,-500.0,0.00022573,2]
[357241385,1743930632767,-500.0,0.00022573,2]
[357241386,1743930632778,-500.0,0.00022573,2]
[357241387,1743930632788,-501.4810687,0.00022573,2]
[357241388,1743930632799,-500.0,0.00022573,2]
[357241389,1743930632810,-500.0,0.00022573,2]
[357241390,1743930632820,-500.0,0.00022573,2]
[357241391,1743930632830,-500.0,0.00022573,2]
[357241392,1743930632841,-501.4549313,0.00022573,2]
[357241393,1743930632852,-500.0,0.00022573,2]
[357241394,1743930632863,-500.0,0.00022573,2]
[357241395,1743930632873,-500.0,0.00022599,2]
[357241396,1743930632883,-24900.0,0.00022599,2]
[357241397,1743930632894,-546.57279202,0.00022973,2]
[357241398,1743930632905,-500.0,0.00022973,2]
[357241399,1743930632915,-500.0,0.00022973,2]
[357241400,1743930632925,-500.0,0.00022973,2]
[357241401,1743930632936,-515.09860518,0.0002298,2]
[357241402,1743930632946,-9111.3717115,0.00023,2]
[357241403,1743930632957,-500.0,0.00023315,2]
[357241404,1743930632967,-542.0,0.00023319,2]
[357241405,1743930632977,-1478.0,0.00023319,2]
[357241406,1743930632987,-2253.078,0.00023319,2]
[357241407,1743930632997,-401.0,0.00023319,2]
[357241408,1743930633007,-240.24683501,0.00023327,2]
[357241409,1743930633017,-500.0,0.00023375,2]
[357241410,1743930633028,-500.0,0.000234,2]
[357241411,1743930633038,-500.0,0.000234,2]
[357241412,1743930633048,-500.0,0.000234,2]
[357241413,1743930633058,-500.0,0.00023435,2]
[357241414,1743930633068,-500.0,0.00023441,2]
[357241415,1743930633078,-500.0,0.0002345,2]
[357241416,1743930633088,-500.0,0.0002345,2]
[357241417,1743930633099,-500.0,0.0002345,2]
[357241418,1743930633110,-280.87644658,0.00023489,2]
[357241419,1743930633121,-500.0,0.00023519,2]
[357241420,1743930633131,-500.0,0.0002355,2]
[357241421,1743930633142,-500.0,0.00023639,2]
[357241422,1743930633153,-500.0,0.00023873,2]
[357241423,1743930633164,-6805.26562413,0.000239,5]
[357241424,1743930633175,-500.0,0.0002391,2]
[357241425,1743930633185,-500.0,0.00023954,2]
[357241426,1743930633194,-420.0,0.00023982,2]
[357241427,1743930633204,-164.0,0.00024,2]
[357241428,1743930633215,-500.0,0.0002401,2]
[357241429,1743930633225,-500.0,0.0002408,2]
[357241430,1743930633235,-157.492,0.00024086,5]
[357241431,1743930633246,-500.0,0.00024105,2]
[357241432,1743930633256,-500.0,0.0002416,2]
[357241433,1743930633267,-500.0,0.00024211,2]
[357241434,1743930633277,-500.0,0.00024562,2]
[357241435,1743930633287,-172.382407,0.00024658,2]
[357241436,1743930633497,-380.0,0.00024658,2]
[357241437,1743930633507,-500.0,0.00024663,2]
[357241438,1743930633516,-500.0,0.00024735,2]
[357241439,1743930633526,-500.0,0.00024783,2]
[357241440,1743930633536,-2232.81190222,0.000248,2]
[357241441,1743930633545,-3620.55819529,0.000248,2]
[357241442,1743930633556,-500.0,0.00024873,2]
[357241443,1743930633565,-500.0,0.00024873,2]
[357241444,1743930633575,-500.0,0.00024873,2]
[357241445,1743930633584,-10861.6745859,0.0002489,2]
[357241446,1743930633594,-151.0,0.00024899,2]
[357241447,1743930633603,-126494.03844412,0.000249,2]
[357241448,1743930633617,-196.96,0.000249,14]
[357241449,1743930633626,-359.59,0.000249,14]
[357241450,1743930633635,-1485.22,0.000249,2]
[357241451,1743930633644,-301568.636251,0.000249,2]
[357241452,1743930633655,-334.56070074,0.00024973,2]
[357241453,1743930633665,-500.0,0.00024973,2]
[357241454,1743930633674,-500.0,0.00024973,2]
[357241455,1743930633683,-504.80763311,0.00024973,2]
[357241456,1743930633693,-500.0,0.00024973,2]
[357241457,1743930633704,-75392.1590628,0.0002499,2]
[357241458,1743930633714,-7241.11639058,0.0002499,2]
[357241459,1743930633724,-375.09900363,0.00025,2]
[357241460,1743930633733,-397.7505996,0.00025,2]
[357241461,1743930633743,-16686.51681679,0.00025,7]
[357241462,1743930633752,-61884.66640054,0.00025,2]
[357241463,1743930633763,-6791.36152576,0.00025,7]
[357241464,1743930633773,-419.28457398,0.00025,7]
[357241465,1743930633783,-500.0,0.00025171,2]
[357241466,1743930633792,-3352.23385336,0.00025193,2]
[357241467,1743930633802,-500.0,0.00025226,2]
[357241468,1743930633812,-500.0,0.00025287,2]
[357241469,1743930633822,-3373.84221829,0.00025354,2]
[357241470,1743930633832,-500.0,0.00025453,2]
[357241471,1743930633841,-500.0,0.00025477,2]
[357241472,1743930633850,-500.0,0.00025539,2]
[357241473,1743930633860,-500.0,0.00025748,2]
[357241474,1743930633869,-500.0,0.00025953,2]
[357241475,1743930633879,-500.0,0.00026002,2]
[357241476,1743930633888,-500.0,0.00026033,2]
[357241477,1743930633898,-587.0,0.00026059,2]
[357241478,1743930633907,-500.0,0.00026065,2]
[357241479,1743930633917,-500.0,0.00026075,2]
[357241480,1743930633926,-500.0,0.00026202,2]
[357241481,1743930633936,-500.0,0.00026305,2]
[357241482,1743930633951,-542.0,0.00026319,2]
[357241483,1743930633972,-1478.0,0.00026319,2]
[357241484,1743930633982,-401.0,0.00026319,2]
[357241485,1743930633992,-6805.2656239,0.00026348,6]
[357241486,1743930634001,-915.54868149,0.00026565,2]
[357241487,1743930634011,-500.0,0.00026568,2]
[357241488,1743930634021,-500.0,0.00026674,2]
[357241489,1743930634031,-500.0,0.00026682,2]
[357241490,1743930634040,-500.0,0.0002669,2]
[357241491,1743930634049,-500.0,0.00026725,2]
[357241492,1743930634059,-233.38616873,0.00026772,2]
[357241493,1743930634069,-500.0,0.00026773,2]
[357241494,1743930634079,-3620.55819529,0.00026794,2]
[357241495,1743930634088,-500.0,0.00026804,2]
[357241496,1743930634097,-500.0,0.00026874,2]
[357241497,1743930634107,-500.0,0.00026955,2]
[357241498,1743930634116,-500.0,0.00027002,2]
[357241499,1743930634126,-500.0,0.00027035,2]
[357241500,1743930634136,-890.7207317,0.00027045,2]
[357241501,1743930634145,-500.0,0.00027066,2]
[357241502,1743930634155,-895.9226825,0.0002716,4]
[357241503,1743930634165,-160.0,0.0002719,2]
[357241504,1743930634175,-500.0,0.00027379,2]
[357241505,1743930634184,-658.23,0.000274,14]
[357241506,1743930634195,-829.00248583,0.00027522,2]
[357241507,1743930634205,-1000.0,0.00027552,5]
[357241508,1743930634215,-1000.0,0.00027552,5]
[357241509,1743930634225,-1000.0,0.00027552,5]
[357241510,1743930634235,-1000.0,0.00027552,5]
[357241511,1743930634244,-1000.0,0.00027552,5]
[357241512,1743930634254,-1000.0,0.00027552,5]
[357241513,1743930634264,-1000.0,0.00027552,2]
[357241514,1743930634274,-1000.0,0.00027552,5]
[357241515,1743930634283,-1000.0,0.00027552,5]
[357241516,1743930634293,-1000.0,0.00027552,5]
[357241517,1743930634303,-1000.0,0.00027552,5]
[357241518,1743930634314,-151.0,0.000278,20]
[357241519,1743930634323,-196.96,0.000279,30]
[357241520,1743930634332,-359.59,0.000279,30]
[357241521,1743930634342,-250.0,0.00027945,5]
[357241522,1743930634352,-385.12294362,0.00027945,5]
[357241523,1743930634362,-190207.24994854,0.00028,2]
[357241528,1743930638186,-626.81718296,0.00023449,2]
[357241529,1743930638196,-15857.04278549,0.00028,2]
[357241530,1743930638206,-1000.0,0.00028,28]
[357241531,1743930638216,-2649.0,0.00028,2]
[357241532,1743930638226,-1000.0,0.00028,7]
[357241533,1743930638236,-2000.0,0.00028,7]
[357241534,1743930638246,-419.28457398,0.00028,3]
[357241535,1743930638255,-419.49,0.00028,14]
[357241536,1743930638266,-1000.0,0.00028052,2]
[357241538,1743930638275,-1000.0,0.00028052,5]
[357241540,1743930638285,-500.0,0.00028052,5]
[357241542,1743930638295,-500.0,0.00028052,5]
[357241543,1743930638305,-583.2339543,0.00028052,5]
[357241544,1743930638315,-500.0,0.00028052,5]
[357241545,1743930638324,-500.0,0.00028052,5]
[357241546,1743930638334,-471.62599645,0.00028052,5]
[357241547,1743930638346,-28.37400355,0.00028052,5]
[357241548,1743930638355,-151.0,0.000282,19]
[357241549,1743930638365,-200.0,0.000283,120]
[357241550,1743930638374,-200.0,0.000283,120]
[357241551,1743930638383,-823.0,0.00028315,2]
[357241552,1743930638392,-1000.0,0.00028452,5]
[357241553,1743930638402,-1000.0,0.00028452,5]
[357241554,1743930638411,-350.0,0.00028493,5]
[357241555,1743930638421,-2542.31732304,0.000285,2]
[357241580,1743930643397,-184.22132352,0.00024899,2]
[357241581,1743930643407,-1980.43102607,0.000285,2]
[357241582,1743930643419,-3479.97,0.000285,2]
[357241583,1743930643450,-263.31091258,0.000285,2]
[357241584,1743930643461,-2575.05444565,0.000285,2]
[357241624,1743930659766,202.65776269,0.00045745,120]
[357241625,1743930696533,235.69916658,0.00045745,120]
[357241626,1743930711624,500.0,0.00045745,120]
[357241627,1743930711884,500.0,0.00045745,120]
[357241628,1743930735303,215.86,0.00045745,120]
[357241629,1743930737019,500.0,0.00045745,120]
[357241630,1743930737254,500.0,0.00045745,120]
[357241631,1743930744426,375.22,0.00045745,120]
[357241633,1743930783627,500.0,0.00045745,120]
[357241634,1743930783909,500.0,0.00045745,120]
[357241635,1743930791489,500.0,0.00045745,120]
[357241636,1743930791750,283.08277208,0.00045745,120]
[357241643,1743931301802,173.746301,0.00013699,2]
[357241680,1743931832431,-836.20464454,0.00022,2]
[357241681,1743931832441,-160.0,0.00022072,2]
[357241682,1743931832451,-173.746301,0.00022831,2]
[357241683,1743931832460,-532.531642,0.00022878,2]
[357241684,1743931832469,-2695.41100094,0.00023073,2]
[357241685,1743931832479,-300.0,0.00023172,2]
[357241686,1743931832488,-375.81593026,0.00023173,2]
[357241687,1743931832497,-500.0,0.00023173,2]
[357241688,1743931832507,-91.06852691,0.00023173,2]
[357241692,1743931838276,-408.93147309,0.00023173,2]
[357241693,1743931838286,-346.57214585,0.00023173,2]
[357241694,1743931838296,-152.27,0.00023173,2]
[357241695,1743931838306,-500.0,0.00023173,2]
[357241696,1743931838315,-500.0,0.00023173,2]
[357241697,1743931838325,-500.0,0.00023173,2]
[357241698,1743931838334,-467.20476232,0.00023173,2]
[357241699,1743931838343,-500.0,0.00023173,2]
[357241700,1743931838353,-7748.65888588,0.00023298,2]
[357241701,1743931838362,-1209.10312752,0.0002381,2]
[357241702,1743931838372,-873.31,0.0002399,3]
[357241703,1743931838382,-386.38693063,0.0002399,3]
[357241704,1743931838394,-50.26306937,0.0002399,3]
[357241705,1743931838403,-526.68556223,0.00023999,2]
[357241706,1743931838413,-239.97837391,0.00024,2]
[357241707,1743931838425,-60.02162709,0.00024,2]
[357241708,1743931838435,-349.45916597,0.00024,2]
[357241709,1743931838447,-2265.61131233,0.00024,2]
[357241710,1743931838459,-416.351307,0.00024,2]
[357241711,1743931838470,-500.0,0.00024,2]
[357241712,1743931838481,-683.4702858,0.00024,2]
[357241714,1743931840703,-3817.93471212,0.00024,2]
[357241715,1743931840715,-4170.81857812,0.00024,2]
[357241732,1743931846590,-42868.48836121,0.00024,2]
[357241733,1743931846600,-1670.88138466,0.00024,2]
[357241734,1743931846610,-401.0,0.00024212,2]
[357241735,1743931846619,-542.0,0.00024212,2]
[357241736,1743931846628,-2970.0,0.00024582,2]
[357241737,1743931846638,-380.0,0.00024658,2]
[357241738,1743931846647,-655.01,0.00024746,3]
[357241739,1743931846656,-500.0,0.00024756,2]
[357241740,1743931846665,-500.0,0.00024756,2]
[357241741,1743931846675,-500.0,0.00024756,2]
[357241742,1743931846685,-500.0,0.00024756,2]
[357241743,1743931846694,-511.12613421,0.00024756,2]
[357241744,1743931846703,-500.0,0.00024756,2]
[357241745,1743931846713,-500.0,0.00024756,2]
[357241746,1743931846722,-500.0,0.00024756,2]
[357241747,1743931846739,-500.0,0.00024756,2]
[357241748,1743931846755,-49103.35458019,0.00024756,2]
[357241749,1743931846764,-1336.69,0.000249,2]
[357241750,1743931846773,-7390.42430326,0.000249,5]
[357241751,1743931846782,-218.33,0.0002499,3]
[357241752,1743931846792,-14870.49512286,0.00025,2]
[357241753,1743931846801,-200.0,0.00025,2]
[357241754,1743931846810,-420.0,0.0002515,2]
[357241755,1743931846819,-1746.62,0.0002536,3]
[357241756,1743931846827,-873.3,0.0002536,3]
[357241757,1743931846836,-2200.0,0.00025821,2]
[357241758,1743931846845,-3272.21911754,0.00026,30]
[357241759,1743931846855,-2695.4110009,0.00026299,2]
[357241760,1743931846863,-436.66,0.0002636,3]
[357241761,1743931846872,-150.58902363,0.00026573,2]
[357241762,1743931846882,-187.37670661,0.00026639,2]
[357241763,1743931846891,-648.60135978,0.00026639,2]
[357241764,1743931846900,-56544.1192971,0.0002664,2]
[357241765,1743931846910,-2353.36282694,0.0002664,2]
[357241766,1743931846919,-4704.55537404,0.00026651,2]
[357241767,1743931846984,-20195.44462596,0.00026651,2]
[357241768,1743931846994,-500.0,0.00026673,2]
[357241769,1743931847003,-500.0,0.00026673,2]
[357241770,1743931847012,-501.48614492,0.00026673,2]
[357241771,1743931847022,-500.0,0.00026673,2]
[357241772,1743931847031,-500.0,0.00026673,2]
[357241773,1743931847041,-500.0,0.00026673,2]
[357241774,1743931847050,-500.0,0.00026673,2]
[357241775,1743931847060,-513.494713,0.00026691,2]
[357241776,1743931847070,-7390.42430305,0.00026969,7]
[357241777,1743931847080,-401.0,0.00027212,2]
[357241778,1743931847090,-587.0,0.00027297,2]
[357241779,1743931847099,-500.0,0.00027397,5]
[357241780,1743931847109,-1028.77579864,0.00027415,2]
[357241781,1743931847118,-289.94402761,0.00027526,2]
[357241782,1743931847128,-500.0,0.00027573,5]
[357241783,1743931847138,-671.9420119,0.00027644,4]
[357241784,1743931847147,-150.58902363,0.00027687,2]
[357241785,1743931847158,-817.11949828,0.00028,2]
[357241786,1743931847168,-7757.0,0.00028,2]
[357241787,1743931847177,-82107.57547675,0.000285,2]
[357241788,1743931847193,-42866.38960068,0.000285,2]
[357241811,1743932730900,178.309589,0.00013699,2]
[357241845,1743933032789,-166.66666668,0.000239,2]
[357241846,1743933032798,-300.0,0.00023999,2]
[357241847,1743933032808,-24042.0,0.00024,2]
[357241848,1743933032817,-166.66666666,0.00024005,2]
[357241849,1743933032826,-166.66666666,0.00024109,2]
[357241850,1743933032835,-20241.7647673,0.00024209,2]
[357241851,1743933032844,-918.78,0.00024572,2]
[357241852,1743933032853,-152.0,0.0002474,2]
[357241853,1743933032862,-160.0,0.00024829,2]
[357241854,1743933032872,-266.265821,0.00024883,2]
[357241855,1743933032881,-1203.02,0.000249,2]
[357241856,1743933032890,-6897.72934961,0.000249,5]
[357241857,1743933032900,-2099.4667968,0.00024906,2]
[357241858,1743933032909,-500.0,0.00025067,2]
[357241859,1743933032919,-192.0,0.00025296,2]
[357241860,1743933032928,-500.0,0.0002535,2]
[357241861,1743933032937,-500.0,0.0002535,2]
[357241862,1743933032947,-9397.8797716,0.0002535,2]
[357241863,1743933032958,-253.303581,0.0002535,2]
[357241864,1743933032984,-5665.76029496,0.0002535,2]
[357241865,1743933032993,-2832.46669884,0.00025525,2]
[357241866,1743933033003,-500.0,0.00025633,2]
[357241867,1743933033012,-357.0,0.0002565,3]
[357241868,1743933033021,-318.0,0.0002565,3]
[357241869,1743933033030,-357.0,0.0002565,3]
[357241870,1743933033039,-318.0,0.0002565,3]
[357241871,1743933033048,-357.0,0.0002565,3]
[357241872,1743933033057,-318.0,0.0002565,3]
[357241873,1743933033067,-318.0,0.0002565,3]
[357241874,1743933033076,-357.0,0.0002565,3]
[357241875,1743933033086,-331.92879127,0.0002565,3]
[357241876,1743933033095,-357.0,0.0002565,3]
[357241877,1743933033105,-357.0,0.0002565,3]
[357241878,1743933033114,-294.03977088,0.0002565,3]
[357241879,1743933033123,-357.0,0.0002565,3]
[357241880,1743933033132,-318.0,0.0002565,3]